[Event "FIDE Open Sachove Univerzity QCC"]
[Site "Ceske Budejovice"]
[Date "2020.07.01"]
[Round "1.1"]
[White "Chval, Petr"]
[Black "Zezula, Jakub"]
[Result "1-0"]
[ECO "A07"]
[WhiteElo "1926"]
[BlackElo "1449"]
[Annotator "ChessBase"]
[PlyCount "67"]
[EventDate "2020.07.01"]
[EventType "swiss"]
[EventCountry "CZE"]
[SourceTitle "playchess.com"]
[Source "ChessBase"]
[SourceQuality "1"]
[TimeControl "40/5400+30:1800+30"]

1. Nf3 {[%emt 0:00:12]} d5 {[%emt 0:00:22]} 2. g3 {[%emt 0:00:09]} Nf6 {[%emt 0:01:58]} 3. Bg2 {[%emt 0:00:07]} Bf5 {[%emt 0:05:18]} 4. c4 {[%emt 0:04:51]} e6 {[%emt 0:04:58]} 5. Qb3 {[%emt 0:07:51]} Qc8 {[%emt 0:09:51]} 6. Nc3 {[%emt 0:08:48]} c6 {[%emt 0:08:45]} 7. d4 {[%emt 0:03:01]} Be7 {[%emt 0:05:45]} 8. Nh4 {[%emt 0:05:34]} Bg4 {[%emt 0:09:18]} 9. h3 {[%emt 0:05:27]} Bh5 {[%emt 0:03:57]} 10. g4 {[%emt 0:08:08]} Bg6 {[%emt 0:03:50]} 11. Bg5 {[%emt 0:00:21]} h6 {[%emt 0:02:33]} 12. Nxg6 {[%emt 0:00:09]} fxg6 {[%emt 0:00:15]} 13. Bf4 {[%emt 0:01:53]} O-O {[%emt 0:09:18]} 14. Bg3 {[%emt 0:05:41]} Nbd7 {[%emt 0:04:57]} 15. e4 {[%emt 0:01:36]} Nxe4 {[%emt 0:11:46]} 16. Nxe4 {[%emt 0:00:26]} dxe4 {[%emt 0:00:14]} 17. Bxe4 {[%emt 0:00:26]} Nf6 {[%emt 0:01:33]} 18. Bxg6 {[%emt 0:01:53]} c5 {[%emt 0:01:05]} 19. dxc5 {[%emt 0:02:26]} Bxc5 {[%emt 0:00:15]} 20. O-O {[%emt 0:00:31]} Qc6 {[%emt 0:02:22]} 21. Rfe1 {[%emt 0:10:39]} Rad8 {[%emt 0:06:10]} 22. Re2 {[%emt 0:00:30]} b6 {[%emt 0:01:14]} 23. Rae1 {[%emt 0:00:19]} e5 {[%emt 0:03:42]} 24. Rxe5 {[%emt 0:03:37]} Nxg4 {[%emt 0:00:59]} 25. Be4 {[%emt 0:01:59]} Qf6 {[%emt 0:00:18]} 26. Rf5 {[%emt 0:00:44]} Nxf2 {[%emt 0:00:26]} 27. Rxf6 {[%emt 0:01:57]} Rxf6 {[%emt 0:00:13]} 28. Bd5+ {[%emt 0:03:14]} Rxd5 {[%emt 0:01:35]} 29. cxd5 {[%emt 0:00:06]} Nd3+ {[%emt 0:00:17]} 30. Kg2 {[%emt 0:00:58]} Nxe1+ {[%emt 0:00:34]} 31. Bxe1 {[%emt 0:00:09]} Rg6+ {[%emt 0:00:15]} 32. Kf3 {[%emt 0:01:02]} Bd6 {[%emt 0:00:26]} 33. Ke4 {[%emt 0:01:15]} Rf6 {[%emt 0:00:19]} 34. Bg3 {[%emt 0:00:16]} 1-0

[Event "FIDE Open Sachove Univerzity QCC"]
[Site "Ceske Budejovice"]
[Date "2020.07.01"]
[Round "1.1"]
[White "Bara, Jan"]
[Black "Veselsky, Jan"]
[Result "0-1"]
[ECO "D93"]
[WhiteElo "1128"]
[BlackElo "1580"]
[Annotator "NA RC"]
[PlyCount "110"]
[EventDate "2020.07.01"]
[EventType "swiss"]
[EventCountry "CZE"]
[SourceTitle "playchess.com"]
[Source "ChessBase"]
[SourceQuality "1"]
[TimeControl "40/5400+30:1800+30"]

1. d4 {[%emt 0:00:00]} Nf6 {[%emt 0:00:00]} 2. c4 {[%emt 0:00:00]} g6 {[%emt 0:00:28]} 3. Nc3 {[%emt 0:00:00]} d5 {[%emt 0:00:35]} 4. Nf3 {[%emt 0:00:20]} Bg7 {[%emt 0:00:44]} 5. Bf4 {[%emt 0:01:17]} O-O {[%emt 0:03:49]} 6. e3 {[%emt 0:00:53]} Bg4 {[%emt 0:07:29]} 7. Be2 {[%emt 0:12:59]} c5 {[%emt 0:04:26]} 8. O-O {[%emt 0:03:54]} cxd4 {[%emt 0:00:29]} 9. Nxd4 {[%emt 0:03:25]} Bxe2 {[%emt 0:06:45]} 10. Qxe2 {[%emt 0:02:12]} dxc4 {[%emt 0:05:01]} 11. Qxc4 {[%emt 0:02:30]} Nbd7 {[%emt 0:01:49]} 12. Nd5 {[%emt 0:08:27]} e5 {[%emt 0:10:01]} 13. Nxf6+ {[%emt 0:01:51]} Qxf6 {[%emt 0:00:58]} 14. Qc7 {[%emt 0:11:27]} Rfd8 {[%emt 0:02:28]} 15. Bxe5 {[%emt 0:03:15]} Nxe5 {[%emt 0:06:35]} 16. Qxb7 {[%emt 0:02:30]} Rdb8 {[%emt 0:01:43]} 17. Qe4 {[%emt 0:01:33]} Nc4 {[%emt 0:08:20]} 18. Rfe1 {[%emt 0:03:12]} Re8 {[%emt 0:06:56]} 19. Qc2 {[%emt 0:04:45]} Rac8 {[%emt 0:01:28]} 20. Qa4 {[%emt 0:07:30]} Qb6 {[%emt 0:04:54]} 21. b3 {[%emt 0:08:45]} Nd6 {[%emt 0:04:46]} 22. Rac1 {[%emt 0:11:15]} h6 {[%emt 0:04:39]} 23. Rc6 {[%emt 0:04:56]} Rxc6 {[%emt 0:03:44]} 24. Nxc6 {[%emt 0:01:06]} Re4 {[%emt 0:02:05]} 25. b4 {[%emt 0:01:08]} Nb5 {[%emt 0:03:04]} 26. Qc2 {[%emt 0:00:45]} Re6 {[%emt 0:02:40]} 27. Na5 {[%emt 0:00:48]} Nd6 {[%emt 0:01:26]} 28. a3 {[%emt 0:02:12]} Re8 {[%emt 0:01:50]} 29. Qc6 {[%emt 0:00:30]} Qb8 {[%emt 0:02:19]} 30. Rd1 {[%emt 0:00:16]} Nf5 {[%emt 0:01:01]} 31. Qc5 {[%emt 0:00:28]} Rc8 {[%emt 0:00:14]} 32. Nc6 {[%emt 0:00:20]} Qc7 {[%emt 0:00:57]} 33. b5 {[%emt 0:00:16]} a6 {[%emt 0:01:21]} 34. a4 {[%emt 0:00:16]} axb5 35. axb5 {[%emt 0:00:11]} Kh7 {[%emt 0:00:15]} 36. Rc1 {[%emt 0:00:44]} Nd6 {[%emt 0:00:17]} 37. b6 {[%emt 0:00:27]} Qd7 {[%emt 0:00:34]} 38. g3 {[%emt 0:01:01]} Nb7 {[%emt 0:00:22]} 39. Qc4 {[%emt 0:00:41]} Nd8 {[%emt 0:00:58]} 40. Qa4 {[%emt 0:01:21]} Rxc6 {[%emt 0:00:17]} 41. Rd1 {[%emt 0:30:20]} Qe6 {[%emt 0:32:11]} 42. Rxd8 {[%emt 0:00:23]} Rxb6 {[%emt 0:00:00]} 43. Kg2 {[%emt 0:00:00]} Ra6 {[%emt 0:00:00]} 44. Qe8 {[%emt 0:00:00]} Qc6+ {[%emt 0:00:00]} 45. Qxc6 {[%emt 0:00:00]} Rxc6 {[%emt 0:00:00]} 46. Rd7 {[%emt 0:00:00]} Kg8 {[%emt 0:00:00]} 47. h4 {[%emt 0:00:00]} Kf8 {[%emt 0:00:00]} 48. f4 {[%emt 0:00:00]} Ke8 49. Rd3 Ke7 {[%emt 0:00:00]} 50. Kf3 {[%emt 0:00:00]} Ke6 {[%emt 0:00:00]} 51. Kg4 {[%emt 0:00:00]} f5+ {[%emt 0:00:00]} 52. Kf3 {[%emt 0:00:00]} Rc3 {[%emt 0:00:00]} 53. Rxc3 Bxc3 54. Ke2 {[%emt 0:00:00]} Kd5 {[%emt 0:00:00]} 55. Kf3 {[%emt 0:00:00]} Be1 {[%emt 0:00:00]} 0-1

[Event "FIDE Open Sachove Univerzity QCC"]
[Site "Ceske Budejovice"]
[Date "2020.07.01"]
[Round "1.2"]
[White "Kaucky, Jaroslav"]
[Black "Zezula, Matej"]
[Result "1-0"]
[ECO "A03"]
[WhiteElo "1573"]
[BlackElo "1125"]
[Annotator "NA"]
[PlyCount "59"]
[EventDate "2020.07.01"]
[EventType "swiss"]
[EventCountry "CZE"]
[SourceTitle "playchess.com"]
[Source "ChessBase"]
[SourceQuality "1"]
[TimeControl "40/5400+30:1800+30"]

1. f4 {[%emt 0:00:00]} d5 {[%emt 0:00:02]} 2. d4 {[%emt 0:00:00]} Bf5 {[%emt 0:01:22]} 3. Nf3 {[%emt 0:00:23]} Nc6 {[%emt 0:01:16]} 4. e3 {[%emt 0:00:13]} Nf6 {[%emt 0:01:17]} 5. Bd3 {[%emt 0:02:17]} Bg4 {[%emt 0:02:22]} 6. h3 {[%emt 0:00:19]} Bxf3 {[%emt 0:01:25]} 7. Qxf3 {[%emt 0:00:18]} e6 {[%emt 0:00:54]} 8. c3 {[%emt 0:00:06]} Bd6 {[%emt 0:01:27]} 9. Nd2 {[%emt 0:00:17]} Qd7 {[%emt 0:02:48]} 10. b4 {[%emt 0:01:13]} a6 {[%emt 0:07:08]} 11. Bb2 {[%emt 0:00:34]} b5 {[%emt 0:01:44]} 12. Bc2 {[%emt 0:00:43]} O-O {[%emt 0:01:03]} 13. g4 {[%emt 0:00:16]} h6 {[%emt 0:04:05]} 14. h4 {[%emt 0:00:31]} Ne8 {[%emt 0:05:23]} 15. g5 {[%emt 0:00:30]} hxg5 {[%emt 0:01:00]} 16. hxg5 {[%emt 0:00:15]} f5 {[%emt 0:04:32]} 17. g6 {[%emt 0:05:51]} Rf6 {[%emt 0:01:03]} 18. Qh5 {[%emt 0:01:22]} Kf8 {[%emt 0:00:25]} 19. Nf3 {[%emt 0:03:20]} Ke7 {[%emt 0:01:31]} 20. Ne5 {[%emt 0:00:46]} Bxe5 {[%emt 0:00:41]} 21. fxe5 {[%emt 0:00:35]} Rf8 {[%emt 0:00:21]} 22. Qh4+ {[%emt 0:01:01]} Nf6 {[%emt 0:01:13]} 23. exf6+ {[%emt 0:00:09]} Rxf6 {[%emt 0:00:25]} 24. a4 {[%emt 0:03:40]} bxa4 {[%emt 0:02:48]} 25. Bxa4 {[%emt 0:00:12]} Rb8 {[%emt 0:00:11]} 26. Ba3 {[%emt 0:00:51]} Ke8 {[%emt 0:00:38]} 27. Bxc6 {[%emt 0:01:46]} Qxc6 {[%emt 0:00:54]} 28. Qh8+ {[%emt 0:02:13]} Rf8 {[%emt 0:00:35]} 29. Qxf8+ {[%emt 0:01:17]} Kxf8 {[%emt 0:00:55]} 30. b5+ {[%emt 0:00:01]} 1-0

[Event "FIDE Open Sachove Univerzity QCC"]
[Site "Ceske Budejovice"]
[Date "2020.07.01"]
[Round "1.2"]
[White "Dudkova, Josefina"]
[Black "Hlavsa, Filip"]
[Result "0-1"]
[ECO "C41"]
[WhiteElo "1447"]
[BlackElo "1886"]
[Annotator "NA"]
[PlyCount "64"]
[EventDate "2020.07.01"]
[EventType "swiss"]
[EventCountry "CZE"]
[SourceTitle "playchess.com"]
[Source "ChessBase"]
[SourceQuality "1"]
[TimeControl "40/5400+30:1800+30"]

1. e4 {[%emt 0:00:00]} d6 {[%emt 0:00:42]} 2. d4 {[%emt 0:00:27]} Nf6 {[%emt 0:00:04]} 3. Nc3 {[%emt 0:00:26]} Nbd7 {[%emt 0:00:04]} 4. Nf3 {[%emt 0:02:09]} e5 {[%emt 0:00:08]} 5. Bc4 {[%emt 0:03:32]} Be7 {[%emt 0:00:17]} 6. O-O {[%emt 0:00:39]} O-O {[%emt 0:00:04]} 7. Bg5 {[%emt 0:06:17] 7.a4 gains popularity.} c6 {[%emt 0:00:34]} 8. dxe5 {[%emt 0:03:24] C41: Philidor Defence.} dxe5 {[%emt 0:00:09]} 9. Re1 {[%emt 0:02:58]} b5 {[%emt 0:00:23]} 10. Bb3 {[%emt 0:00:54]} Qc7 {[%emt 0:00:41]} 11. a3 {[%emt 0:03:34]} Nc5 {[%emt 0:00:25]} 12. Ba2 {[%emt 0:01:38]} Bg4 {[%emt 0:00:34] [#]} 13. b4 $146 {[%emt 0:08:52]} ({Predecessor:} 13. h3 Rad8 14. Qe2 Be6 15. Bxe6 Nxe6 16. Be3 Nd4 17. Bxd4 exd4 18. Na2 Qb6 19. b4 {½-½ (35) Polovka,M (1786)-Husek,Z (1909) Slovakia 2016}) 13... Ne6 {[%emt 0:00:30]} 14. Bh4 {[%emt 0:00:30]} Rad8 {[%emt 0:01:01]} 15. Qe2 {[%emt 0:01:32]} Nd4 {[%emt 0:00:13]} 16. Qe3 {[%emt 0:05:40]} Nxc2 {[%emt 0:00:58]} 17. Qe2 {[%emt 0:00:28]} Nd4 {[%emt 0:00:38]} 18. Qe3 {[%emt 0:03:46]} Bxf3 {[%emt 0:00:54]} 19. gxf3 {[%emt 0:00:30]} Nc2 {[%emt 0:00:08]} 20. Qe2 {[%emt 0:00:44]} Nxa1 {[%emt 0:00:24]} 21. Rxa1 {[%emt 0:00:13]} Nh5 {[%emt 0:00:27]} 22. Bg3 {[%emt 0:01:04]} Bg5 $19 {[%emt 0:00:56]} 23. h4 {[%emt 0:16:49]} Bf4 {[%emt 0:00:30]} 24. Bxf4 {[%emt 0:00:30]} Nxf4 {[%emt 0:01:27]} 25. Qe1 {[%emt 0:03:50]} Qe7 {[%emt 0:00:13]} 26. Qf1 {[%emt 0:03:36]} Qxh4 {[%emt 0:00:07]} 27. Ne2 {[%emt 0:09:09]} Rd6 {[%emt 0:00:13]} 28. Ng3 {[%emt 0:01:45]} Rh6 {[%emt 0:00:23]} 29. Qd1 {[%emt 0:02:58]} Rd8 {[%emt 0:02:06]} 30. Qc2 {[%emt 0:01:43]} Qh2+ {[%emt 0:00:21]} 31. Kf1 {[%emt 0:00:44]} Rd1+ {[%emt 0:00:33]} 32. Qxd1 {[%emt 0:04:19]} Qh1+ {[%emt 0:00:06]} 0-1

[Event "FIDE Open Sachove Univerzity QCC"]
[Site "Ceske Budejovice"]
[Date "2020.07.01"]
[Round "1.3"]
[White "Svanda, Adam"]
[Black "Roubal, Matyas"]
[Result "1-0"]
[ECO "A14"]
[WhiteElo "1870"]
[BlackElo "1443"]
[Annotator "NA"]
[PlyCount "91"]
[EventDate "2020.07.01"]
[EventType "swiss"]
[EventCountry "CZE"]
[SourceTitle "playchess.com"]
[Source "ChessBase"]
[SourceQuality "1"]
[TimeControl "40/5400+30:1800+30"]

1. c4 {[%emt 0:00:00]} e6 {[%emt 0:00:00]} 2. g3 {[%emt 0:00:59]} d5 {[%emt 0:00:00]} 3. Bg2 {[%emt 0:01:29]} Nf6 {[%emt 0:00:19]} 4. Nf3 {[%emt 0:00:46]} c5 {[%emt 0:01:07]} 5. b3 {[%emt 0:01:28]} Nc6 {[%emt 0:00:44]} 6. Bb2 {[%emt 0:01:24]} Be7 {[%emt 0:01:50]} 7. O-O {[%emt 0:00:21]} O-O {[%emt 0:00:10]} 8. e3 {[%emt 0:01:32]} b6 {[%emt 0:01:43]} 9. d3 {[%emt 0:01:40]} Bb7 {[%emt 0:00:34]} 10. a3 {[%emt 0:00:51]} dxc4 {[%emt 0:02:33]} 11. bxc4 {[%emt 0:03:48]} Qc7 {[%emt 0:01:07]} 12. Nc3 {[%emt 0:03:08]} a6 {[%emt 0:02:31]} 13. Qc2 {[%emt 0:01:47]} Rad8 {[%emt 0:01:00]} 14. Rfd1 {[%emt 0:02:11]} Nd7 {[%emt 0:04:41]} 15. Ne2 {[%emt 0:03:40]} Bf6 {[%emt 0:01:37]} 16. Bxf6 {[%emt 0:02:09]} Nxf6 {[%emt 0:02:02]} 17. Qb2 {[%emt 0:01:59]} Rfe8 {[%emt 0:06:04]} 18. Rab1 {[%emt 0:01:08]} Nd7 $11 {[%emt 0:00:16]} 19. Nf4 {[%emt 0:01:51]} Na5 {[%emt 0:01:56]} 20. Ne2 {[%emt 0:06:08]} e5 {[%emt 0:01:11]} 21. e4 {[%emt 0:03:02]} Nc6 {[%emt 0:01:35]} 22. Nc3 {[%emt 0:00:27]} Nd4 {[%emt 0:00:24]} 23. Nd5 {[%emt 0:03:38]} Bxd5 {[%emt 0:00:05]} 24. cxd5 {[%emt 0:00:08]} b5 {[%emt 0:00:47]} 25. Rdc1 {[%emt 0:02:48]} Nb6 {[%emt 0:01:49]} 26. Nxd4 {[%emt 0:00:33]} exd4 {[%emt 0:00:47]} 27. Qxd4 {[%emt 0:00:36]} c4 {[%emt 0:01:06]} 28. dxc4 {[%emt 0:00:43]} Nxc4 {[%emt 0:00:07]} 29. a4 {[%emt 0:01:29]} Rb8 {[%emt 0:00:34]} 30. Bf1 {[%emt 0:00:44]} Qe5 {[%emt 0:01:48]} 31. Rxc4 {[%emt 0:01:57]} Rbd8 {[%emt 0:01:20]} 32. Qxe5 {[%emt 0:00:25]} Rxe5 {[%emt 0:00:04]} 33. axb5 {[%emt 0:00:10]} axb5 {[%emt 0:00:09]} 34. Rxb5 {[%emt 0:00:07]} f5 {[%emt 0:00:28]} 35. exf5 {[%emt 0:00:18]} Rxf5 {[%emt 0:00:19]} 36. Bg2 {[%emt 0:00:39]} Kf7 {[%emt 0:00:29]} 37. Rb7+ {[%emt 0:00:36]} Kf8 {[%emt 0:00:34]} 38. d6 {[%emt 0:01:14]} Re5 {[%emt 0:00:28]} 39. Rc1 {[%emt 0:00:44]} Re6 {[%emt 0:00:37]} 40. d7 {[%emt 0:00:20]} Rd6 {[%emt 0:00:14]} 41. Bh3 {[%emt 0:30:12]} Ke7 {[%emt 0:30:14]} 42. Rc8 {[%emt 0:00:25]} Rd1+ {[%emt 0:00:37]} 43. Kg2 {[%emt 0:00:10]} R8xd7 {[%emt 0:01:52]} 44. Rxd7+ {[%emt 0:00:13]} Rxd7 {[%emt 0:00:04]} 45. Bxd7 {[%emt 0:00:10]} Kxd7 {[%emt 0:00:04]} 46. Rg8 {[%emt 0:00:11]} 1-0

[Event "FIDE Open Sachove Univerzity QCC"]
[Site "Ceske Budejovice"]
[Date "2020.07.01"]
[Round "1.3"]
[White "Day, Sophia Olivia"]
[Black "Janku, Jaroslav"]
[Result "0-1"]
[ECO "C47"]
[WhiteElo "1099"]
[BlackElo "1571"]
[Annotator "NA"]
[PlyCount "106"]
[EventDate "2020.07.01"]
[EventType "swiss"]
[EventCountry "CZE"]
[SourceTitle "playchess.com"]
[Source "ChessBase"]
[SourceQuality "1"]
[TimeControl "40/5400+30:1800+30"]

1. e4 {[%emt 0:00:00]} e5 {[%emt 0:00:00]} 2. Nf3 {[%emt 0:00:00]} Nc6 {[%emt 0:00:00]} 3. Nc3 {[%emt 0:00:05]} Nf6 {[%emt 0:00:17]} 4. d4 {[%emt 0:00:18]} d6 {[%emt 0:00:55]} 5. dxe5 {[%emt 0:00:26]} dxe5 {[%emt 0:00:45]} 6. Qxd8+ {[%emt 0:00:22]} Kxd8 {[%emt 0:00:37]} 7. Bg5 {[%emt 0:00:21]} h6 {[%emt 0:00:33]} 8. Bxf6+ {[%emt 0:01:24]} gxf6 {[%emt 0:00:10]} 9. O-O-O+ {[%emt 0:00:31]} Bd6 {[%emt 0:00:31]} 10. Nb5 {[%emt 0:01:51]} Kd7 {[%emt 0:00:47]} 11. g3 {[%emt 0:02:03]} a6 {[%emt 0:00:09]} 12. Bh3+ {[%emt 0:00:55]} Ke7 {[%emt 0:01:04]} 13. Bxc8 {[%emt 0:01:20]} Raxc8 {[%emt 0:00:11]} 14. Nc3 {[%emt 0:00:57]} Ke6 {[%emt 0:02:07]} 15. Rd2 {[%emt 0:01:33]} Bb4 {[%emt 0:01:10]} 16. Rd3 {[%emt 0:02:05]} Bxc3 {[%emt 0:00:19]} 17. Rxc3 {[%emt 0:01:11]} f5 {[%emt 0:00:48]} 18. exf5+ {[%emt 0:00:47]} Kxf5 {[%emt 0:00:14]} 19. Nh4+ {[%emt 0:00:50]} Ke6 {[%emt 0:00:37]} 20. f4 {[%emt 0:02:21]} Nd4 {[%emt 0:00:18]} 21. Kb1 {[%emt 0:01:44]} e4 {[%emt 0:05:17]} 22. Re1 {[%emt 0:02:11]} Kd5 {[%emt 0:04:01]} 23. Rce3 {[%emt 0:02:07]} Rce8 {[%emt 0:02:09]} 24. Rd1 {[%emt 0:03:56]} c5 {[%emt 0:02:56]} 25. c3 {[%emt 0:03:41]} Rd8 {[%emt 0:00:14]} 26. cxd4 {[%emt 0:00:41]} cxd4 {[%emt 0:00:09]} 27. Rb3 {[%emt 0:00:24]} b5 {[%emt 0:00:45]} 28. Rb4 {[%emt 0:00:56]} Kc5 {[%emt 0:00:16]} 29. Rb3 {[%emt 0:00:47]} d3 {[%emt 0:02:16]} 30. Rc3+ {[%emt 0:01:16]} Kd5 {[%emt 0:00:56]} 31. Ng2 {[%emt 0:05:21]} Rc8 {[%emt 0:00:12]} 32. Rxc8 {[%emt 0:00:25]} Rxc8 {[%emt 0:00:01]} 33. Ne3+ {[%emt 0:01:13]} Ke6 {[%emt 0:01:24]} 34. f5+ {[%emt 0:00:40]} Ke5 {[%emt 0:00:15]} 35. Rc1 {[%emt 0:01:42]} Rd8 {[%emt 0:01:05]} 36. Rc5+ {[%emt 0:00:45]} Kd4 {[%emt 0:00:39]} 37. Rc1 {[%emt 0:05:38]} Kxe3 {[%emt 0:00:16]} 38. Rd1 {[%emt 0:01:39]} Rc8 {[%emt 0:00:18]} 39. a3 {[%emt 0:11:56]} d2 40. g4 Ke2 41. Rg1 d1=R+ 42. Rxd1 Kxd1 {[%emt 0:34:50]} 43. Ka2 {[%emt 0:31:46]} a5 {[%emt 0:00:21]} 44. Kb3 {[%emt 0:01:01]} a4+ 45. Kb4 e3 {[%emt 0:02:46]} 46. Kxb5 {[%emt 0:01:24]} e2 {[%emt 0:00:02]} 47. Kxa4 {[%emt 0:00:32]} e1=Q 48. b4 Qe8+ 49. Kb3 Kd2 {[%emt 0:03:49]} 50. h4 {[%emt 0:01:23]} Rc3+ {[%emt 0:01:46]} 51. Kb2 {[%emt 0:00:44]} Qa4 {[%emt 0:00:07]} 52. g5 {[%emt 0:00:48]} Qb3+ {[%emt 0:00:04]} 53. Ka1 {[%emt 0:00:29]} Rc1# {[%emt 0:00:04]} 0-1

[Event "FIDE Open Sachove Univerzity QCC"]
[Site "Ceske Budejovice"]
[Date "2020.07.01"]
[Round "1.4"]
[White "Kroulik, Vaclav"]
[Black "Titera, Libor"]
[Result "0-1"]
[ECO "C01"]
[WhiteElo "1442"]
[BlackElo "1843"]
[Annotator "NA RC"]
[PlyCount "102"]
[EventDate "2020.07.01"]
[EventType "swiss"]
[EventCountry "CZE"]
[SourceTitle "playchess.com"]
[Source "ChessBase"]
[SourceQuality "1"]
[TimeControl "40/5400+30:1800+30"]

{[%evp 20,101,0,32767,32767,-57,32767,32767,41,32767,32767,32767,32767,83,32767,32767,32767,32767,32767,32767,32767,-399,-64,32767,32767,32767,32767,-67,-77,-52,-54,-189,-195,-265,32767,32767,32767,-310,-286,32767,-183,32767,32767,-925,32767,-690,32767,-975,-992,-980,-1105,-1179,32767,-1337,-1143,32767,32767,32767,-1689,-29959,32767,-29981,-29984,-2156,32767,32767,32767,-29995,-29987,-29994,-29991,-29998,-29991,-29992,-29993,-29993,-29992,-29992,-29993,-29997,-29998,-29998,-29999,-29999]} 1. e4 {[%emt 1:00:04]} e6 {[%emt 1:00:10]} 2. d4 {[%emt 0:00:15]} d5 {[%emt 0:00:12]} 3. exd5 {[%emt 0:00:36]} exd5 {[%emt 0:00:11]} 4. Nf3 {[%emt 0:00:21]} Nf6 {[%emt 0:00:55]} 5. Bd3 {[%emt 0:00:00]} Bd6 {[%emt 0:00:00]} 6. c3 {[%emt 0:00:00]} O-O {[%emt 0:00:00]} 7. O-O {[%emt 0:00:00]} Bg4 {[%emt 0:00:00]} 8. Bg5 {[%emt 0:00:00]} Nbd7 {[%emt 0:00:00]} 9. Nbd2 {[%emt 0:00:00]} h6 {[%emt 0:00:00] C01: French: Exchange Variation.} 10. Bh4 {[%emt 0:00:00]} c6 {[%emt 0:00:00]} 11. Qc2 {[%emt 0:00:00]} Qc7 {[%emt 0:00:00]} 12. h3 {[%emt 0:00:00]} ({White should play} 12. Rfe1 $11) 12... Bh5 {[%emt 0:00:00]} 13. g4 {[%emt 0:00:00]} g5 $1 {[%emt 0:00:00]} 14. gxh5 {[%emt 0:00:00] [#]} Nxh5 $146 {[%emt 0:00:00]} ({Predecessor:} 14... gxh4 15. Kh1 Kh8 16. Nxh4 Nxh5 17. Bf5 Ndf6 {½-½ (17) Soilemetzidis,K (1720)-Dimopoulos,H (1595) Chania 2003}) 15. Bxg5 {[%emt 0:00:00]} hxg5 {[%emt 0:00:00]} 16. Nxg5 {[%emt 0:00:00]} Kg7 {[%emt 0:00:00]} 17. Bf5 {[%emt 0:00:00]} Ndf6 {[%emt 0:00:00]} 18. Be6 {[%emt 0:00:00]} Nf4 {[%emt 0:00:00]} 19. Bg4 {[%emt 0:00:00]} Rh8 {[%emt 0:00:00]} 20. Qf5 $2 {[%emt 0:00:00]} (20. Bf5 {is the only way for White.} Rh5 21. Ndf3) 20... Rag8 $2 {[%emt 0:03:11]} (20... Nxg4 $19 21. Qxg4 Rag8) 21. Rae1 {[%emt 0:03:35]} Nxg4 {[%emt 0:06:17]} 22. hxg4 {[%emt 0:05:47]} Rh6 {[%emt 0:05:33]} 23. Re5 {[%emt 0:12:24]} Bxe5 {[%emt 0:05:08]} 24. dxe5 {[%emt 0:00:52]} Ne6 {[%emt 0:06:40]} ({But not} 24... Ne2+ $6 25. Kg2 $16) 25. Ndf3 {[%emt 0:01:42]} ({Only move:} 25. f4 $1 $15) 25... Qe7 {[%emt 0:00:20]} 26. Re1 {[%emt 0:01:20]} (26. Nxe6+ {was worth a try.} fxe6 27. Qf4) 26... Rg6 {[%emt 0:01:49]} 27. Nh3 {[%emt 0:01:02]} Kf8 {[%emt 0:00:55]} 28. Nh2 {[%emt 0:00:25]} Rh8 {[%emt 0:02:43]} 29. Re3 {[%emt 0:00:25]} d4 {[%emt 0:01:30]} 30. cxd4 {[%emt 0:00:45]} Nxd4 {[%emt 0:00:11]} 31. Qc8+ $2 {[%emt 0:00:53]} (31. Qe4 Ne6 32. Nf4 Nxf4 33. Qxf4) 31... Kg7 {[%emt 0:00:26]} 32. Qxh8+ {[%emt 0:01:08]} Kxh8 {[%emt 0:00:03]} 33. Nf4 {[%emt 0:00:11]} Rh6 {[%emt 0:01:20]} 34. Nh5 {[%emt 0:00:30]} Qc5 {[%emt 0:01:07]} 35. Kg2 {[%emt 0:00:26]} Qd5+ {[%emt 0:00:33]} 36. Kg1 {[%emt 0:00:28]} Qxa2 {[%emt 0:00:21] Decoy} 37. Ra3 {[%emt 0:00:36]} Qb1+ {[%emt 0:00:34]} 38. Kg2 {[%emt 0:00:07]} Qe4+ {[%emt 0:01:03]} 39. f3 {[%emt 0:00:34]} Qe2+ {[%emt 0:00:45]} 40. Kg3 {[%emt 0:00:46]} Qxe5+ {[%emt 0:00:19]} 41. Kg2 {[%emt 0:30:19]} Qg5 {[%emt 0:31:49]} 42. Kf2 {[%emt 0:00:27]} Re6 {[%emt 0:02:15]} 43. Kg3 {[%emt 0:00:39]} a6 {[%emt 0:02:52]} 44. Ra1 {[%emt 0:01:00]} Re2 {[%emt 0:00:42]} 45. Rb1 {[%emt 0:00:45]} Qd2 {[%emt 0:00:09]} 46. Rh1 {[%emt 0:00:17]} Rg2+ {[%emt 0:01:06]} 47. Kh3 {[%emt 0:00:20]} Ne6 {[%emt 0:00:49]} 48. Nf1 {[%emt 0:00:42]} Qf2 {[%emt 0:01:04]} 49. f4 {[%emt 0:01:09]} Nxf4+ {[%emt 0:00:00]} 50. Nxf4 {[%emt 0:00:00]} Qf3+ {[%emt 0:00:00] Double Attack} 51. Kh4 {[%emt 0:00:00]} Qxg4# {[%emt 0:00:00]} 0-1